fUST/lending_fUST_20250612
["ID","MTS","AMOUNT","RATE_DAILY","PERIOD"]
[365429266,1749666633156,-341.63847771,0.00020577,2]
[365429267,1749666633167,-300.0,0.00020899,2]
[365429268,1749666633177,-300.0,0.00020899,2]
[365429269,1749666633195,-300.0,0.00020899,2]
[365429270,1749666633206,-300.0,0.00020899,2]
[365429271,1749666633219,-1200.0,0.00020899,2]
[365429272,1749666633231,-49474.23361928,0.000209,2]
[365429273,1749666633242,-300.0,0.00020996,2]
[365429274,1749666633254,-174.668,0.00020997,2]
[365429275,1749666633265,-1000.0,0.00021,21]
[365429276,1749666633276,-380.0,0.00021095,4]
[365429277,1749666633286,-460.0,0.00021095,4]
[365429278,1749666633297,-460.0,0.00021095,4]
[365429279,1749666633307,-460.0,0.00021095,4]
[365429280,1749666633319,-460.0,0.00021095,4]
[365429281,1749666633332,-460.0,0.00021095,4]
[365429282,1749666633342,-460.0,0.00021095,4]
[365429283,1749666633353,-1147.24,0.00021095,4]
[365429284,1749666633364,-460.0,0.00021095,4]
[365429285,1749666633374,-938.38,0.00021095,4]
[365429286,1749666633385,-340.0,0.00021095,4]
[365429287,1749666633395,-460.0,0.00021095,4]
[365429288,1749666633406,-460.0,0.00021095,4]
[365429289,1749666633416,-460.0,0.00021095,4]
[365429290,1749666633426,-460.0,0.00021095,4]
[365429291,1749666633442,-460.0,0.00021095,4]
[365429292,1749666633452,-460.0,0.00021095,4]
[365429293,1749666633462,-460.0,0.00021095,4]
[365429294,1749666633473,-460.0,0.00021095,4]
[365429295,1749666633483,-460.0,0.00021095,4]
[365429296,1749666633494,-460.0,0.00021095,4]
[365429297,1749666633505,-1361.44,0.00021095,4]
[365429298,1749666633515,-460.0,0.00021095,4]
[365429299,1749666633526,-460.0,0.00021095,4]
[365429300,1749666633536,-460.0,0.00021095,4]
[365429301,1749666633546,-460.0,0.00021095,4]
[365429302,1749666633556,-460.0,0.00021095,4]
[365429303,1749666633566,-460.0,0.00021095,4]
[365429304,1749666633576,-460.0,0.00021095,4]
[365429305,1749666633587,-460.0,0.00021095,4]
[365429306,1749666633597,-460.0,0.00021095,4]
[365429307,1749666633607,-460.0,0.00021095,4]
[365429308,1749666633616,-460.0,0.00021095,4]
[365429309,1749666633626,-460.0,0.00021095,4]
[365429310,1749666633637,-460.0,0.00021095,4]
[365429311,1749666633647,-460.0,0.00021095,4]
[365429312,1749666633658,-460.0,0.00021095,4]
[365429313,1749666633667,-460.0,0.00021095,4]
[365429314,1749666633677,-460.0,0.00021095,4]
[365429315,1749666633693,-1251.39,0.00021095,4]
[365429316,1749666633703,-2237.62,0.00021095,4]
[365429317,1749666633713,-1184.58,0.00021095,4]
[365429318,1749666633723,-460.0,0.00021095,4]
[365429319,1749666633733,-460.0,0.00021095,4]
[365429320,1749666633743,-460.0,0.00021095,4]
[365429321,1749666633753,-460.0,0.00021095,4]
[365429322,1749666633763,-460.0,0.00021095,4]
[365429323,1749666633773,-460.0,0.00021095,4]
[365429324,1749666633783,-460.0,0.00021095,4]
[365429325,1749666633793,-460.0,0.00021095,4]
[365429326,1749666633803,-958.64501406,0.00021095,4]
[365429327,1749666633815,-210.04498594,0.00021095,4]
[365429328,1749666633825,-808.9,0.00021095,4]
[365429329,1749666633835,-420.0,0.00021095,4]
[365429330,1749666633845,-572.55,0.00021095,2]
[365429331,1749666633855,-12953.10896415,0.000213,2]
[365429332,1749666633864,-294.67682317,0.00021324,2]
[365429333,1749666633874,-460.0,0.00021367,4]
[365429334,1749666633884,-185.00000008,0.00021367,4]
[365429335,1749666633894,-460.0,0.00021367,4]
[365429336,1749666633903,-360.0,0.00021367,4]
[365429337,1749666633913,-460.0,0.00021367,4]
[365429338,1749666633922,-460.0,0.00021367,4]
[365429339,1749666633932,-491.93,0.00021367,4]
[365429340,1749666633947,-460.0,0.00021367,4]
[365429341,1749666633957,-463.02,0.00021367,4]
[365429342,1749666633966,-460.0,0.00021367,4]
[365429343,1749666633976,-545.34,0.00021367,4]
[365429344,1749666633985,-460.0,0.00021367,4]
[365429345,1749666633995,-1507.18,0.00021367,4]
[365429346,1749666634004,-460.0,0.00021367,4]
[365429347,1749666634013,-460.0,0.00021367,4]
[365429348,1749666634023,-1000.0,0.00021368,2]
[365429349,1749666634032,-1000.0,0.00021368,4]
[365429350,1749666634041,-151.0,0.00021369,4]
[365429351,1749666634051,-460.0,0.00021369,4]
[365429352,1749666634059,-460.0,0.00021369,4]
[365429353,1749666634069,-460.0,0.00021369,4]
[365429354,1749666634078,-1147.24,0.00021369,4]
[365429355,1749666634087,-460.0,0.00021369,4]
[365429356,1749666634096,-938.38,0.00021369,4]
[365429357,1749666634105,-460.0,0.00021369,4]
[365429358,1749666634114,-460.0,0.00021369,4]
[365429359,1749666634124,-460.0,0.00021369,4]
[365429360,1749666634133,-460.0,0.00021369,4]
[365429361,1749666634142,-460.0,0.00021369,4]
[365429362,1749666634151,-1361.44,0.00021369,4]
[365429363,1749666634160,-460.0,0.00021369,4]
[365429364,1749666634170,-418.46,0.00021369,4]
[365429365,1749666634179,-460.0,0.00021369,4]
[365429366,1749666634192,-174.72,0.00021369,4]
[365429367,1749666634202,-460.0,0.00021369,4]
[365429368,1749666634211,-460.0,0.00021369,4]
[365429369,1749666634220,-460.0,0.00021369,4]
[365429370,1749666634230,-460.0,0.00021369,4]
[365429371,1749666634239,-460.0,0.00021369,4]
[365429372,1749666634249,-460.0,0.00021369,4]
[365429373,1749666634264,-460.0,0.00021369,4]
[365429374,1749666634274,-460.0,0.00021369,4]
[365429375,1749666634284,-1251.39,0.00021369,4]
[365429376,1749666634294,-2237.62,0.00021369,4]
[365429377,1749666634304,-1184.58,0.00021369,4]
[365429378,1749666634315,-460.0,0.00021369,4]
[365429379,1749666634327,-460.0,0.00021369,4]
[365429380,1749666634340,-460.0,0.00021369,4]
[365429381,1749666634350,-460.0,0.00021369,4]
[365429382,1749666634360,-1168.69,0.00021369,4]
[365429383,1749666634370,-808.9,0.00021369,4]
[365429384,1749666634382,-317.0,0.00021369,2]
[365429385,1749666634391,-572.55,0.00021369,2]
[365429386,1749666634401,-151.0,0.00021396,4]
[365429387,1749666634411,-210.0028259,0.00021424,4]
[365429388,1749666634420,-656.0,0.00021431,2]
[365429389,1749666634430,-656.0,0.00021439,2]
[365429390,1749666634444,-656.0,0.00021468,2]
[365429391,1749666634454,-656.0,0.00021511,2]
[365429392,1749666634463,-656.0,0.00021527,2]
[365429393,1749666634473,-656.0,0.00021544,2]
[365429394,1749666634483,-1105.53,0.00021557,2]
[365429395,1749666634494,-319.33904503,0.00021606,2]
[365429396,1749666634504,-182.59,0.00021633,3]
[365429397,1749666634513,-547.81,0.00021633,3]
[365429398,1749666634523,-460.0,0.00021641,4]
[365429399,1749666634532,-460.0,0.00021641,4]
[365429400,1749666634542,-460.0,0.00021641,4]
[365429401,1749666634551,-491.93,0.00021641,4]
[365429402,1749666634560,-460.0,0.00021641,4]
[365429403,1749666634570,-545.34,0.00021641,4]
[365429404,1749666634580,-460.0,0.00021641,4]
[365429405,1749666634589,-1507.18,0.00021641,4]
[365429406,1749666634599,-460.0,0.00021641,4]
[365429407,1749666634608,-460.0,0.00021641,4]
[365429408,1749666634618,-460.0,0.00021643,4]
[365429409,1749666634628,-1147.24,0.00021643,4]
[365429410,1749666634638,-460.0,0.00021643,4]
[365429411,1749666634647,-938.38,0.00021643,4]
[365429412,1749666634657,-460.0,0.00021643,4]
[365429413,1749666634666,-408.54539775,0.00021643,4]
[365429414,1749666634675,-460.0,0.00021643,4]
[365429415,1749666634686,-1361.44,0.00021643,4]
[365429416,1749666634696,-460.0,0.00021643,4]
[365429417,1749666634706,-460.0,0.00021643,4]
[365429418,1749666634716,-460.0,0.00021643,4]
[365429419,1749666634725,-460.0,0.00021643,4]
[365429420,1749666634735,-460.0,0.00021643,4]
[365429421,1749666634744,-460.0,0.00021643,4]
[365429422,1749666634753,-1251.39,0.00021643,4]
[365429423,1749666634763,-2237.62,0.00021643,4]
[365429424,1749666634775,-1184.58,0.00021643,4]
[365429425,1749666634785,-460.0,0.00021643,4]
[365429426,1749666634795,-589.43352507,0.00021643,4]
[365429427,1749666634804,-1168.69,0.00021643,4]
[365429428,1749666634814,-808.9,0.00021643,4]
[365429429,1749666634823,-572.55,0.00021643,2]
[365429430,1749666634833,-5000.0,0.00021673,2]
[365429431,1749666634843,-750.0,0.00021673,2]
[365429432,1749666634853,-819.68109792,0.00021673,2]
[365429433,1749666634862,-207.4,0.00021673,2]
[365429434,1749666634872,-4930.63174128,0.00021673,2]
[365429435,1749666634882,-794.71,0.000217,2]
[365429436,1749666634891,-656.0,0.00021721,2]
[365429437,1749666634901,-153.0,0.00021753,2]
[365429438,1749666634911,-153.0,0.00021753,2]
[365429439,1749666634921,-534.24511276,0.0002177,2]
[365429440,1749666634931,-473.87128663,0.0002178,2]
[365429441,1749666634944,-752.4028321,0.00021791,2]
[365429442,1749666634954,-274.0,0.00021819,2]
[365429443,1749666634964,-503.63052869,0.00021832,2]
[365429444,1749666634975,-500.0,0.00021832,2]
[365429445,1749666634985,-502.48789432,0.00021832,2]
[365429446,1749666634995,-500.0,0.00021832,2]
[365429447,1749666635005,-350.55412938,0.00021832,2]
[365429448,1749666635014,-500.0,0.00021832,2]
[365429449,1749666635023,-500.0,0.00021832,2]
[365429450,1749666635032,-160.0,0.00021861,2]
[365429451,1749666635041,-160.0,0.00021861,2]
[365429452,1749666635051,-229.71724145,0.00021861,2]
[365429453,1749666635061,-213.16534259,0.00021861,2]
[365429454,1749666635150,-835.03886221,0.00021861,2]
[365429455,1749666635171,-844.64040732,0.00021861,2]
[365429456,1749666635181,-160.0,0.00021861,2]
[365429457,1749666635193,-160.0,0.00021861,2]
[365429458,1749666635203,-424.19973472,0.00021861,2]
[365429459,1749666635214,-160.0,0.00021861,2]
[365429460,1749666635223,-11860.25191276,0.00021861,2]
[365429461,1749666635233,-160.0,0.00021861,2]
[365429462,1749666635242,-160.0,0.00021861,2]
[365429463,1749666635252,-160.0,0.00021861,2]
[365429464,1749666635261,-160.0,0.00021861,2]
[365429465,1749666635271,-656.0,0.0002188,2]
[365429466,1749666635282,-53620.21792515,0.0002189,2]
[365429467,1749666635296,-672.53584929,0.000219,2]
[365429468,1749666635306,-298.91710406,0.00021904,2]
[365429469,1749666635316,-460.0,0.00021915,4]
[365429470,1749666635330,-491.93,0.00021915,4]
[365429471,1749666635339,-397.89824152,0.00021915,4]
[365429472,1749666635349,-545.34,0.00021915,4]
[365429473,1749666635359,-460.0,0.00021915,4]
[365429474,1749666635371,-1507.18,0.00021915,4]
[365429475,1749666635381,-460.0,0.00021915,4]
[365429476,1749666635391,-500.0,0.00021916,2]
[365429477,1749666635403,-1000.0,0.00021916,2]
[365429478,1749666635414,-1000.0,0.00021916,2]
[365429479,1749666635423,-1000.0,0.00021916,2]
[365429480,1749666635434,-1000.0,0.00021916,2]
[365429481,1749666635447,-1000.0,0.00021916,2]
[365429482,1749666635457,-1000.0,0.00021916,2]
[365429483,1749666635467,-173.32,0.00021916,2]
[365429484,1749666635476,-500.0,0.00021917,2]
[365429485,1749666635486,-460.0,0.00021917,4]
[365429486,1749666635496,-1147.24,0.00021917,4]
[365429487,1749666635506,-460.0,0.00021917,4]
[365429488,1749666635515,-938.38,0.00021917,4]
[365429489,1749666635525,-460.0,0.00021917,4]
[365429490,1749666635535,-460.0,0.00021917,4]
[365429491,1749666635545,-1361.44,0.00021917,4]
[365429492,1749666635555,-460.0,0.00021917,4]
[365429493,1749666635564,-460.0,0.00021917,4]
[365429494,1749666635574,-460.0,0.00021917,4]
[365429495,1749666635583,-460.0,0.00021917,4]
[365429496,1749666635593,-1251.39,0.00021917,4]
[365429497,1749666635602,-2237.62,0.00021917,4]
[365429498,1749666635612,-1184.58,0.00021917,4]
[365429499,1749666635621,-460.0,0.00021917,4]
[365429500,1749666635631,-1168.69,0.00021917,4]
[365429501,1749666635642,-808.9,0.00021917,4]
[365429502,1749666635651,-572.55,0.00021917,2]
[365429503,1749666635661,-656.0,0.0002194,2]
[365429504,1749666635671,-656.0,0.00021951,2]
[365429505,1749666635681,-656.0,0.00021971,2]
[365429506,1749666635695,-500.0,0.00021973,2]
[365429507,1749666635704,-500.0,0.00021973,2]
[365429508,1749666635714,-512.79628993,0.00021973,2]
[365429509,1749666635723,-500.0,0.00021973,2]
[365429510,1749666635733,-500.0,0.00021973,2]
[365429511,1749666635743,-449.45625511,0.00021973,2]
[365429512,1749666635753,-500.0,0.00021973,2]
[365429513,1749666635762,-500.0,0.00021973,2]
[365429514,1749666635772,-500.0,0.00021973,2]
[365429515,1749666635781,-500.0,0.00021973,2]
[365429516,1749666635790,-500.0,0.00021973,2]
[365429517,1749666635800,-500.0,0.00021973,2]
[365429518,1749666635809,-500.0,0.00021973,2]
[365429519,1749666635819,-345.24134502,0.00021973,2]
[365429520,1749666635828,-1729.13958828,0.00021976,2]
[365429521,1749666635838,-500.0,0.00021988,2]
[365429522,1749666635848,-500.0,0.00021988,2]
[365429523,1749666635857,-471.80539523,0.00021988,2]
[365429524,1749666635867,-143676.71531983,0.0002199,2]
[365429525,1749666635876,-151.0,0.0002199,7]
[365429526,1749666635886,-151.0,0.0002199,7]
[365429527,1749666635895,-292.6608,0.0002199,7]
[365429528,1749666635904,-151.0,0.0002199,7]
[365429529,1749666635913,-721.202962,0.0002199,7]
[365429530,1749666635923,-721.202962,0.0002199,7]
[365429531,1749666635932,-151.0,0.0002199,7]
[365429532,1749666635944,-151.0,0.0002199,7]
[365429533,1749666635954,-167.913368,0.0002199,7]
[365429534,1749666635964,-167.913368,0.0002199,7]
[365429535,1749666635973,-231.951183,0.0002199,7]
[365429536,1749666635982,-231.951183,0.0002199,7]
[365429537,1749666635991,-656.0,0.00021992,2]
[365429538,1749666636001,-752.40283208,0.00021993,2]
[365429539,1749666636010,-16698.79975173,0.00022,2]
[365429540,1749666636019,-1000.0,0.00022,22]
[365429541,1749666636029,-187212.99,0.00022,7]
[365429542,1749666636038,-717.879805,0.00022,2]
[365429543,1749666636048,-717.879805,0.00022,2]
[365429544,1749666636058,-151.0,0.00022,7]
[365429545,1749666636067,-151.0,0.00022,7]
[365429546,1749666636076,-151.0,0.00022,7]
[365429547,1749666636086,-152.052705,0.00022,7]
[365429548,1749666636095,-151.0,0.00022,7]
[365429549,1749666636105,-11860.25191276,0.00022,7]
[365429550,1749666636115,-151.0,0.00022,7]
[365429551,1749666636124,-151.0,0.00022,7]
[365429552,1749666636135,-151.0,0.00022,7]
[365429553,1749666636144,-151.0,0.00022,7]
[365429554,1749666636153,-151.0,0.00022,7]
[365429555,1749666636163,-173.061753,0.00022,7]
[365429556,1749666636172,-173.061753,0.00022,7]
[365429557,1749666636182,-173.061753,0.00022,7]
[365429558,1749666636194,-173.061753,0.00022,7]
[365429559,1749666636204,-213.16534259,0.00022,7]
[365429560,1749666636213,-189.0,0.00022,2]
[365429561,1749666636223,-721.202962,0.00022,7]
[365429562,1749666636232,-721.202962,0.00022,7]
[365429563,1749666636241,-151.0,0.00022,7]
[365429564,1749666636250,-151.0,0.00022,7]
[365429565,1749666636259,-151.0,0.00022,7]
[365429566,1749666636269,-151.0,0.00022,7]
[365429567,1749666636278,-151.0,0.00022,7]
[365429568,1749666636287,-167.913368,0.00022,7]
[365429569,1749666636296,-167.913368,0.00022,7]
[365429570,1749666636305,-231.951183,0.00022,7]
[365429571,1749666636315,-231.951183,0.00022,7]
[365429572,1749666636324,-151.116657,0.00022,7]
[365429573,1749666636337,-10098.03375451,0.00022,2]
[365429574,1749666636347,-154.059257,0.00022,7]
[365429575,1749666636355,-844.64040732,0.00022,7]
[365429576,1749666636365,-151.0,0.00022,7]
[365429577,1749666636375,-160.0,0.00022,7]
[365429578,1749666636385,-165.0,0.00022,2]
[365429579,1749666636395,-160.0,0.0002203,3]
[365429580,1749666636406,-1554.0,0.00022055,2]
[365429581,1749666636415,-151.0,0.00022098,7]
[365429582,1749666636424,-151.0,0.00022098,7]
[365429583,1749666636434,-151.747389,0.00022098,7]
[365429584,1749666636443,-151.0,0.00022098,7]
[365429585,1749666636453,-405.79377,0.00022098,7]
[365429586,1749666636462,-405.79377,0.00022098,7]
[365429587,1749666636471,-151.0,0.00022098,7]
[365429588,1749666636481,-151.0,0.00022098,7]
[365429589,1749666636490,-151.0,0.00022098,7]
[365429590,1749666636500,-151.0,0.00022098,7]
[365429591,1749666636510,-151.0,0.00022098,7]
[365429592,1749666636519,-151.0,0.00022098,7]
[365429593,1749666636529,-284.868136,0.00022098,7]
[365429594,1749666636538,-284.868136,0.00022098,7]
[365429595,1749666636547,-151.0,0.00022098,7]
[365429596,1749666636557,-639.0,0.000221,2]
[365429597,1749666636566,-656.0,0.00022127,2]
[365429598,1749666636575,-656.0,0.00022143,2]
[365429599,1749666636585,-656.0,0.00022149,2]
[365429600,1749666636594,-656.0,0.00022151,2]
[365429601,1749666636605,-460.0,0.00022189,4]
[365429602,1749666636614,-491.93,0.00022189,4]
[365429603,1749666636624,-545.34,0.00022189,4]
[365429604,1749666636634,-1507.18,0.00022189,4]
[365429605,1749666636644,-460.0,0.00022189,4]
[365429606,1749666636653,-460.0,0.00022191,4]
[365429607,1749666636663,-1147.24,0.00022191,4]
[365429608,1749666636673,-460.0,0.00022191,4]
[365429609,1749666636682,-938.38,0.00022191,4]
[365429610,1749666636693,-460.0,0.00022191,4]
[365429611,1749666636702,-460.0,0.00022191,4]
[365429612,1749666636712,-1361.44,0.00022191,4]
[365429613,1749666636722,-460.0,0.00022191,4]
[365429614,1749666636731,-460.0,0.00022191,4]
[365429615,1749666636741,-460.0,0.00022191,4]
[365429616,1749666636751,-460.0,0.00022191,4]
[365429617,1749666636760,-1251.39,0.00022191,4]
[365429618,1749666636770,-2237.62,0.00022191,4]
[365429619,1749666636779,-1184.58,0.00022191,4]
[365429620,1749666636789,-460.0,0.00022191,4]
[365429621,1749666636798,-1168.69,0.00022191,4]
[365429622,1749666636807,-808.9,0.00022191,4]
[365429623,1749666636816,-572.55,0.00022191,2]
[365429624,1749666636825,-151.0,0.00022192,7]
[365429625,1749666636834,-151.0,0.00022192,7]
[365429626,1749666636844,-178.241321,0.00022192,7]
[365429627,1749666636853,-178.241321,0.00022192,7]
[365429628,1749666636863,-151.600532,0.00022192,7]
[365429629,1749666636873,-405.79377,0.00022192,7]
[365429630,1749666636882,-405.79377,0.00022192,7]
[365429631,1749666636891,-151.0,0.00022192,7]
[365429632,1749666636900,-752.40283208,0.00022196,2]
[365429633,1749666636909,-3786.55,0.000222,7]
[365429634,1749666636919,-151.0,0.000222,7]
[365429635,1749666636928,-151.0,0.000222,7]
[365429636,1749666636942,-151.0,0.000222,7]
[365429637,1749666636951,-151.0,0.000222,7]
[365429638,1749666636961,-151.0,0.000222,7]
[365429639,1749666636970,-152.624397,0.000222,7]
[365429640,1749666636979,-270.683971,0.000222,7]
[365429641,1749666636988,-270.683971,0.000222,7]
[365429642,1749666636997,-151.0,0.000222,7]
[365429643,1749666637007,-453.575662,0.000222,7]
[365429644,1749666637017,-453.575662,0.000222,7]
[365429645,1749666637027,-211.343556,0.000222,7]
[365429646,1749666637036,-211.343556,0.000222,7]
[365429647,1749666637046,-151.0,0.000222,7]
[365429648,1749666637056,-151.0,0.000222,7]
[365429649,1749666637066,-158.577103,0.000222,7]
[365429650,1749666637075,-159.232136,0.000222,7]
[365429651,1749666637085,-159.232136,0.000222,7]
[365429652,1749666637094,-528.930879,0.000222,7]
[365429653,1749666637103,-528.930879,0.000222,7]
[365429654,1749666637113,-151.0,0.000222,7]
[365429655,1749666637122,-527.380506,0.000222,7]
[365429656,1749666637131,-527.380506,0.000222,7]
[365429657,1749666637141,-208.943659,0.000222,7]
[365429658,1749666637150,-208.943659,0.000222,7]
[365429659,1749666637160,-151.0,0.000222,7]
[365429660,1749666637169,-151.731635,0.000222,7]
[365429661,1749666637178,-151.0,0.000222,7]
[365429662,1749666637189,-178.241321,0.000222,7]
[365429663,1749666637198,-178.241321,0.000222,7]
[365429664,1749666637208,-405.79377,0.000222,7]
[365429665,1749666637217,-405.79377,0.000222,7]
[365429666,1749666637226,-151.0,0.000222,7]
[365429667,1749666637236,-151.0,0.000222,7]
[365429668,1749666637245,-151.0,0.000222,7]
[365429669,1749666637254,-151.0,0.000222,7]
[365429670,1749666637263,-153.870603,0.000222,7]
[365429671,1749666637272,-153.870603,0.000222,7]
[365429672,1749666637281,-151.0,0.000222,7]
[365429673,1749666637291,-151.0,0.000222,7]
[365429674,1749666637300,-151.0,0.000222,7]
[365429675,1749666637309,-284.868136,0.000222,7]
[365429676,1749666637321,-284.868136,0.000222,7]
[365429677,1749666637331,-1000.0,0.000222,2]
[365429678,1749666637340,-151.0,0.000222,7]
[365429679,1749666637349,-245.14973366,0.000222,69]
[365429680,1749666637360,-245.14973365,0.000222,69]
[365429681,1749666637369,-561.03000424,0.00022213,2]
[365429682,1749666637379,-151.0,0.00022217,7]
[365429683,1749666637470,-756.86,0.00022217,5]
[365429684,1749666637491,-717.879805,0.00022221,2]
[365429685,1749666637501,-151.0,0.00022221,7]
[365429686,1749666637510,-151.0,0.00022221,7]
[365429687,1749666637520,-151.0,0.00022221,7]
[365429688,1749666637529,-151.0,0.00022221,7]
[365429689,1749666637538,-151.0,0.00022221,7]
[365429690,1749666637547,-173.061753,0.00022221,7]
[365429691,1749666637557,-173.061753,0.00022221,7]
[365429692,1749666637567,-721.202962,0.00022221,7]
[365429693,1749666637576,-721.202962,0.00022221,7]
[365429694,1749666637586,-151.0,0.00022221,7]
[365429695,1749666637595,-151.0,0.00022221,7]
[365429696,1749666637604,-151.0,0.00022221,7]
[365429697,1749666637614,-151.0,0.00022221,7]
[365429698,1749666637623,-167.913368,0.00022221,7]
[365429699,1749666637632,-167.913368,0.00022221,7]
[365429700,1749666637641,-231.951183,0.00022221,7]
[365429701,1749666637651,-231.951183,0.00022221,7]
[365429702,1749666637660,-5000.0,0.00022221,2]
[365429703,1749666637669,-1724.100099,0.00022246,3]
[365429704,1749666637679,-151.0,0.00022246,7]
[365429705,1749666637690,-151.0,0.00022246,7]
[365429706,1749666637699,-158.77989778,0.00022247,2]
[365429707,1749666637709,-656.0,0.0002226,2]
[365429708,1749666637718,-656.0,0.00022263,2]
[365429709,1749666637727,-306.0,0.00022301,2]
[365429710,1749666637737,-153.0,0.00022301,2]
[365429711,1749666637746,-153.0,0.00022301,2]
[365429712,1749666637756,-153.0,0.00022301,2]
[365429713,1749666637766,-312.8299132,0.00022301,2]
[365429714,1749666637775,-756.86,0.00022317,5]
[365429715,1749666637785,-1000.0,0.0002238,2]
[365429716,1749666637794,-997.98872165,0.00022388,2]
[365429717,1749666637804,-752.40283208,0.00022398,2]
[365429718,1749666637813,-756.86,0.00022417,3]
[365429719,1749666637822,-245.14973365,0.00022439,70]
[365429720,1749666637832,-460.0,0.00022463,4]
[365429721,1749666637842,-491.93,0.00022463,4]
[365429723,1749666637851,-545.34,0.00022463,4]
[365429724,1749666637860,-1507.18,0.00022463,4]
[365429725,1749666637871,-460.0,0.00022463,4]
[365429726,1749666637880,-500.0,0.00022464,3]
[365429727,1749666637889,-500.0,0.00022465,2]
[365429728,1749666637898,-460.0,0.00022465,4]
[365429731,1749666637908,-1147.24,0.00022465,4]
[365429732,1749666637917,-460.0,0.00022465,4]
[365429733,1749666637927,-938.38,0.00022465,4]
[365429734,1749666637936,-460.0,0.00022465,4]
[365429735,1749666637947,-460.0,0.00022465,4]
[365429736,1749666637956,-1361.44,0.00022465,4]
[365429737,1749666637966,-460.0,0.00022465,4]
[365429738,1749666637975,-460.0,0.00022465,4]
[365429739,1749666637984,-460.0,0.00022465,4]
[365429740,1749666637994,-460.0,0.00022465,4]
[365429741,1749666638003,-1251.39,0.00022465,4]
[365429743,1749666638013,-2237.62,0.00022465,4]
[365429744,1749666638023,-1184.58,0.00022465,4]
[365429746,1749666638032,-178.5652528,0.00022465,4]
[365429747,1749666638042,-1168.69,0.00022465,4]
[365429748,1749666638051,-808.9,0.00022465,4]
[365429749,1749666638060,-572.55,0.00022465,2]
[365429750,1749666638069,-158.77989778,0.00022466,2]
[365429751,1749666638079,-2520.06751533,0.00022473,2]
[365429752,1749666638088,-653.0,0.00022479,2]
[365429753,1749666638097,-2160.0,0.00022479,2]
[365429754,1749666638107,-151.0,0.00022479,7]
[365429755,1749666638116,-182.116498,0.00022479,7]
[365429756,1749666638126,-284.868136,0.00022479,7]
[365429757,1749666638135,-284.868136,0.00022479,7]
[365429758,1749666638144,-151.0,0.00022479,7]
[365429759,1749666638154,-151.0,0.00022488,7]
[365429760,1749666638163,-151.0,0.00022488,7]
[365429761,1749666638172,-151.734754,0.00022488,7]
[365429763,1749666638182,-151.0,0.00022488,7]
[365429765,1749666638193,-270.683971,0.00022488,7]
[365429767,1749666638202,-270.683971,0.00022488,7]
[365429769,1749666638211,-151.0,0.00022488,7]
[365429771,1749666638220,-453.575662,0.00022488,7]
[365429772,1749666638229,-453.575662,0.00022488,7]
[365429774,1749666638239,-211.343556,0.00022488,7]
[365429776,1749666638248,-211.343556,0.00022488,7]
[365429777,1749666638258,-151.0,0.00022488,7]